bitfinex/quotes_SOLUSD_20250714
["timestamp","ask_amount","ask_price","bid_price","bid_amount"]
[1752476131123,23.06946384,165.49,165.44,6.28477987]
[1752476131309,35.73442107,165.48,165.44,6.28477987]
[1752476131497,47.82047376,165.48,165.44,6.28477987]
[1752476131731,47.82047376,165.48,165.45,6.28477987]
[1752476132043,35.73393437,165.5,165.47,6.28477987]
[1752476132421,35.73393437,165.5,165.49,6.28477987]
[1752476133297,35.73393437,165.5,165.44,6.28477987]
[1752476133298,47.81852651,165.5,165.48,6.28477987]
[1752476135548,47.81852651,165.5,165.44,6.28477987]
[1752476135549,4.89362626,165.51,165.49,6.28477987]
[1752476135705,35.79362626,165.51,165.5,6.28477987]
[1752476136034,4.89362626,165.51,165.5,6.28477987]
[1752476136810,4.89362626,165.51,165.46,6.094]
[1752476137528,30.9,165.5,165.46,6.094]
[1752476137715,30.9,165.5,165.49,6.28477987]
[1752476138649,4.83412895,165.49,165.46,6.094]
[1752476138814,4.83412895,165.49,165.48,6.28477987]
[1752476139442,12.143862,165.51,165.48,6.28477987]
[1752476139443,35.79376882,165.51,165.48,6.28477987]
[1752476139628,4.89376882,165.51,165.5,6.28477987]
[1752476140186,4.89376882,165.51,165.46,6.094]
[1752476140349,4.89376882,165.51,165.5,6.28477987]
[1752476142644,0.06,165.51,165.5,6.28477987]
[1752476150463,0.06,165.51,165.5,12.56955974]
[1752476150832,0.06,165.57,165.5,12.56955974]
[1752476151032,4.89179319,165.57,165.56,6.28477987]
[1752476151944,16.97127618,165.57,165.54,6.28477987]
[1752476152868,16.97127618,165.57,165.53,6.28477987]
[1752476153067,23.25605605,165.57,165.52,6.28477987]
[1752476153767,16.78468397,165.56,165.52,6.28477987]
[1752476153967,30.84,165.55,165.52,6.28477987]
[1752476154182,4.83266884,165.54,165.52,6.28477987]
[1752476154769,4.83266884,165.54,165.53,6.28477987]
[1752476156275,4.83266884,165.54,165.52,6.28477987]
[1752476157675,4.83266884,165.54,165.53,6.28477987]
[1752476159363,4.89266884,165.54,165.53,6.28477987]
[1752476160163,4.89266884,165.54,165.47,1.5343]
[1752476160364,4.89266884,165.54,165.53,6.28477987]
[1752476161596,4.89266884,165.54,165.52,6.28477987]
[1752476161802,0.06,165.54,165.53,6.28477987]
[1752476165599,0.06,165.54,165.52,6.28477987]
[1752476167394,0.06,165.54,165.53,6.28477987]
[1752476167998,0.06,165.54,165.53,7.84937987]
[1752476172099,0.06,165.57,165.53,13.89058086]
[1752476172276,0.06,165.57,165.56,6.28477987]
[1752476179895,0.06,165.57,165.53,91.1646]
[1752476180101,0.06,165.57,165.56,6.28477987]
[1752476181117,0.06,165.57,165.53,91.1646]
[1752476181285,0.06,165.57,165.55,6.28477987]
[1752476181810,0.06,165.57,165.51,0.03]
[1752476182011,0.06,165.57,165.55,6.28477987]
[1752476183392,30.88,165.57,165.53,6.28477987]
[1752476183705,37.16477987,165.57,165.53,6.28477987]
[1752476183895,37.16477987,165.57,165.52,6.28477987]
[1752476184487,16.91229765,165.56,165.51,0.03]
[1752476184689,23.19707752,165.56,165.51,6.31477987]
[1752476187310,6.28477987,165.55,165.51,0.03]
[1752476189117,23.19707752,165.56,165.51,6.31477987]
[1752476189411,23.06946384,165.55,165.51,0.03]
[1752476189609,6.28477987,165.54,165.51,0.03]
[1752476190210,30.82,165.53,165.51,0.03]
[1752476190411,37.10477987,165.53,165.51,0.03]
[1752476190592,30.82,165.53,165.51,0.03]
[1752476190801,4.83325277,165.52,165.51,0.03]
[1752476193595,4.83296079,165.53,165.51,0.03]
[1752476193798,35.67296079,165.53,165.51,0.03]
[1752476196197,4.83296079,165.53,165.52,6.28477987]
[1752476197920,4.83266884,165.54,165.52,6.28477987]
[1752476198799,16.91434094,165.54,165.51,6.31477987]
[1752476199027,16.91434094,165.54,165.51,0.03]
[1752476201205,6.28477987,165.53,165.51,0.03]
[1752476201404,30.84,165.52,165.51,0.03]
[1752476202400,35.67325277,165.52,165.51,0.03]
[1752476206118,4.83325277,165.52,165.51,6.31477987]
[1752476206623,4.83296079,165.53,165.51,6.31477987]
[1752476206825,4.83296079,165.53,165.52,6.28477987]
[1752476208101,0.06,165.54,165.52,6.28477987]
[1752476208300,0.06,165.54,165.53,6.28477987]
[1752476209330,0.06,165.54,165.51,0.03]
[1752476209518,0.06,165.54,165.52,6.28477987]
[1752476210321,0.06,165.54,165.51,0.03]
[1752476210724,0.06,165.54,165.51,6.31477987]
[1752476212646,0.06,165.54,165.52,6.28477987]
[1752476214024,0.06,165.54,165.53,6.28477987]
[1752476223959,0.06,165.54,165.52,6.28477987]
[1752476225461,0.06,165.54,165.53,6.28477987]
[1752476227673,0.06,165.54,165.51,0.03]
[1752476227848,0.06,165.54,165.53,6.28477987]
[1752476228042,0.06,165.54,165.51,0.03]
[1752476228243,0.06,165.54,165.53,6.28477987]
[1752476228458,0.06,165.54,165.51,0.03]
[1752476228670,0.06,165.54,165.53,6.28477987]
[1752476245189,0.06,165.54,165.53,6.31477987]
[1752476263743,0.06,165.54,165.53,0.03]
[1752476264161,30.86,165.54,165.53,0.03]
[1752476265767,35.69266884,165.54,165.53,0.03]
[1752476269768,35.69266884,165.54,165.53,6.31477987]
[1752476271371,35.69266884,165.54,165.53,0.03]
[1752476271554,35.69266884,165.54,165.52,6.28477987]
[1752476271555,47.77434094,165.54,165.51,0.03]
[1752476272054,47.77434094,165.54,165.51,6.31477987]
[1752476272456,47.77434094,165.54,165.52,6.28477987]
[1752476273352,47.77434094,165.54,165.51,6.31477987]
[1752476273873,47.77434094,165.54,165.51,0.03]
[1752476274080,47.77434094,165.54,165.51,6.31477987]
[1752476275077,47.77434094,165.54,165.52,6.28477987]
[1752476275293,47.77434094,165.54,165.53,6.28477987]
[1752476275776,47.77434094,165.54,165.51,0.03]
[1752476276148,47.77434094,165.54,165.51,6.31477987]
[1752476277556,47.77434094,165.54,165.51,0.03]
[1752476278479,47.77434094,165.54,165.51,6.31477987]
[1752476280162,47.77434094,165.54,165.51,0.03]
[1752476280362,16.97434094,165.54,165.51,0.03]
[1752476280661,30.8,165.53,165.51,6.31477987]
[1752476281159,30.8,165.53,165.46,0.03]
[1752476281160,37.08477987,165.53,165.46,0.03]
[1752476281354,37.08477987,165.53,165.48,6.28477987]
[1752476282286,23.06946384,165.52,165.47,6.28477987]
[1752476282488,47.6974068,165.51,165.47,6.28477987]
[1752476282665,47.6974068,165.51,165.48,6.28477987]
[1752476283267,47.6974068,165.51,165.46,0.03]
[1752476283487,47.6974068,165.51,165.48,6.28477987]
[1752476284661,4.8335448,165.51,165.5,6.28477987]
[1752476287198,4.83325277,165.52,165.5,6.28477987]
[1752476287491,4.83325277,165.52,165.51,6.28477987]
[1752476296992,30.8,165.53,165.51,6.28477987]
[1752476297288,4.89276664,165.54,165.52,6.28477987]
[1752476297490,4.89276664,165.54,165.53,6.28477987]
[1752476298276,16.97443874,165.54,165.48,0.03]
[1752476298471,30.78,165.53,165.5,6.28477987]
[1752476300083,4.83325277,165.52,165.5,6.28477987]
[1752476300289,30.78,165.51,165.5,6.28477987]
[1752476301309,35.6135448,165.51,165.5,6.28477987]
[1752476303680,30.78,165.52,165.5,6.28477987]
[1752476303884,0.06,165.54,165.51,6.28477987]
[1752476304086,0.06,165.54,165.53,6.28477987]
[1752476304998,4.8927106,165.54,165.53,6.28477987]
[1752476315692,0.06,165.54,165.53,6.28477987]
[1752476315894,0.06,165.57,165.53,6.28477987]
[1752476316085,4.8918149,165.57,165.53,89.6]
[1752476316412,4.8918149,165.57,165.56,6.28477987]
[1752476317103,4.8918149,165.57,165.55,6.28477987]
[1752476319096,30.76,165.56,165.55,6.28477987]
[1752476319587,35.59208504,165.56,165.55,6.28477987]
[1752476321807,30.76,165.56,165.55,6.28477987]
[1752476322004,4.8918855,165.57,165.55,6.28477987]
[1752476322005,0.06,165.57,165.55,6.28477987]
[1752476322207,0.06,165.57,165.56,6.28477987]
[1752476323295,0.06,165.57,165.56,14.04877987]
[1752476338034,0.1,165.59,165.56,115.97366604]
[1752476338217,0.1,165.59,165.58,6.28477987]
[1752476338526,4.93120961,165.59,165.54,26.03]
[1752476338829,4.93120961,165.59,165.58,6.28477987]
[1752476343829,0.1,165.59,165.58,6.28477987]
[1752476344417,0.06,165.61,165.58,12.56955974]
[1752476344631,0.06,165.61,165.6,12.56955974]
[1752476344928,4.88982835,165.64,165.6,12.56955974]
[1752476345133,0.06,165.64,165.63,6.28477987]
[1752476351745,0.06,165.64,165.59,30.72]
[1752476351927,0.06,165.64,165.63,6.28477987]
[1752476356644,0.06,165.64,165.63,12.32233345]
[1752476356832,0.06,165.64,165.63,6.28477987]
[1752476358823,0.06,165.64,165.63,12.32233345]
[1752476359849,0.06,165.64,165.63,6.28477987]
[1752476382172,0.06,165.64,165.61,0.03]
[1752476382347,0.06,165.64,165.63,6.28477987]
[1752476389083,0.06,165.64,165.63,3.35582645]
[1752476390150,0.06,165.64,165.61,0.03]
[1752476390568,0.06,165.64,165.61,3.38582645]
[1752476392968,0.06,165.64,165.61,5.27547858]
[1752476393779,0.06,165.64,165.63,5.24547858]
[1752476399479,0.06,165.64,165.62,5.24547858]
[1752476399688,0.06,165.64,165.61,5.27547858]
[1752476400276,0.06,165.64,165.62,5.24547858]
[1752476400986,0.06,165.64,165.61,5.27547858]
[1752476401186,0.06,165.64,165.62,5.24547858]
[1752476401489,5.24547858,165.63,165.61,0.03]
[1752476401981,5.30547858,165.64,165.61,0.03]
[1752476402365,5.24547858,165.63,165.61,0.03]
[1752476402682,5.30547858,165.64,165.61,0.03]
[1752476403014,10.07552144,165.63,165.61,0.03]
[1752476403767,4.83004286,165.63,165.61,0.03]
[1752476404281,35.51004286,165.63,165.61,0.03]
[1752476404469,4.83004286,165.63,165.62,5.24547858]
[1752476405277,4.88975126,165.64,165.62,5.24547858]
[1752476405464,4.88975126,165.64,165.63,5.24547858]
[1752476405790,4.88975126,165.64,165.62,5.24547858]
[1752476407073,0.06,165.64,165.62,5.24547858]
[1752476407470,0.06,165.64,165.63,5.24547858]
[1752476415286,0.06,165.64,165.61,6.03825313]
[1752476415490,0.06,165.64,165.63,5.24547858]
[1752476420806,0.06,165.64,165.63,11.28303216]
[1752476425710,0.2,165.67,165.63,18.98893216]
[1752476426007,0.2,165.67,165.66,5.24547858]
[1752476427416,0.2,165.67,165.66,10.49095716]
[1752476427710,0.2,165.67,165.66,16.52741737]
[1752476428606,0.1,165.68,165.66,16.52741737]
[1752476428812,0.1,165.68,165.67,10.49095716]
[1752476429712,0.1,165.68,165.67,16.52705301]
[1752476431901,0.1,165.71,165.67,33.31173698]
[1752476432089,0.1,165.71,165.7,5.24547858]
[1752476433211,4.92771106,165.71,165.67,89.6]
[1752476433504,4.92771106,165.71,165.68,5.24547858]
[1752476434308,4.92771106,165.71,165.69,5.24547858]
[1752476435010,4.92771106,165.71,165.7,5.24547858]
[1752476435533,4.92771106,165.71,165.67,89.6]
[1752476435700,4.92771106,165.71,165.7,5.24547858]
[1752476436406,4.92771106,165.71,165.66,89.6]
[1752476436609,22.24246729,165.71,165.61,0.03]
[1752476436808,5.24547858,165.7,165.65,5.24547858]
[1752476437014,16.99698871,165.71,165.67,5.24547858]
[1752476437413,22.24246729,165.71,165.61,26.03]
[1752476437615,22.24246729,165.71,165.66,5.24547858]
[1752476437925,5.24547858,165.7,165.66,5.24547858]
[1752476438228,4.8282938,165.69,165.66,5.24547858]
[1752476438605,16.8990283,165.69,165.66,5.24547858]
[1752476440732,12.0707345,165.69,165.61,26.03]
[1752476440908,12.0707345,165.69,165.65,5.24547858]
[1752476441108,12.0707345,165.69,165.66,5.24547858]
[1752476441308,12.0707345,165.69,165.61,0.03]
[1752476441507,12.0707345,165.69,165.65,5.24547858]
[1752476442715,12.0707345,165.69,165.61,0.03]
[1752476442716,16.8990283,165.69,165.67,5.24547858]
[1752476443821,12.0707345,165.69,165.67,5.24547858]
[1752476446612,4.82800241,165.7,165.68,5.24547858]
[1752476447830,4.82800241,165.7,165.69,5.24547858]
[1752476451419,16.89800844,165.7,165.67,5.24547858]
[1752476451729,16.89800844,165.7,165.66,5.27547858]
[1752476455230,16.89800844,165.7,165.66,0.03]
[1752476455434,22.14348702,165.7,165.66,0.03]
[1752476455740,5.24547858,165.68,165.66,0.03]
[1752476455923,30.66,165.68,165.66,0.03]
[1752476457016,4.82887668,165.67,165.66,0.03]
[1752476460639,35.4882938,165.69,165.66,5.27547858]
[1752476460938,4.8282938,165.69,165.68,5.24547858]
[1752476462139,16.89800844,165.7,165.68,5.24547858]
[1752476462442,4.82800241,165.7,165.69,5.24547858]
[1752476465329,35.58780348,165.71,165.69,5.24547858]
[1752476465537,4.92780348,165.71,165.7,5.24547858]
[1752476467021,0.1,165.71,165.7,5.24547858]
[1752476467219,4.92771106,165.71,165.7,5.24547858]
[1752476467443,0.1,165.71,165.7,5.24547858]
[1752476474422,0.06,165.72,165.7,102.51858159]
[1752476474744,0.06,165.72,165.71,5.24547858]
[1752476476347,0.06,165.72,165.71,11.2801174]
[1752476476561,0.06,165.72,165.71,5.24547858]
[1752476477049,0.06,165.72,165.71,94.84547858]
[1752476477253,0.06,165.72,165.71,131.5201174]
[1752476477743,0.06,165.72,165.71,125.48547858]
[1752476478847,0.06,165.72,165.71,94.84547858]
[1752476479023,0.06,165.72,165.71,89.6]
[1752476479232,0.06,165.72,165.68,0.03]
[1752476479540,0.06,165.72,165.7,5.24547858]
[1752476479748,5.24547858,165.71,165.68,0.03]
[1752476480232,5.30547858,165.72,165.68,0.03]
[1752476480433,5.24547858,165.7,165.68,0.03]
[1752476480663,5.24547858,165.69,165.68,0.03]
[1752476481152,10.07377238,165.69,165.68,0.03]
[1752476483130,10.07377238,165.69,165.68,1e-08]
[1752476483530,4.8282938,165.69,165.68,1e-08]
[1752476485752,26.85845635,165.69,165.68,1e-08]
[1752476485954,28.45705635,165.69,165.68,1e-08]
[1752476488160,16.78468397,165.68,165.66,1e-08]
[1752476488334,35.88547858,165.67,165.66,1e-08]
[1752476489140,57.49903923,165.67,165.66,1e-08]
[1752476492859,60.48492493,165.67,165.66,1e-08]
[1752476493943,4.82887668,165.67,165.66,1e-08]
[1752476494133,35.46887668,165.67,165.66,1e-08]
[1752476499156,40.71435526,165.67,165.66,1e-08]
[1752476500587,35.46887668,165.67,165.66,1e-08]
[1752476503068,35.46887668,165.67,165.66,5.24547859]
[1752476505175,35.46887668,165.67,165.66,1e-08]
[1752476506753,35.46887668,165.67,165.66,5.24547859]
[1752476510777,35.46887668,165.67,165.66,1e-08]
[1752476513675,35.52887668,165.67,165.66,1e-08]
[1752476516783,40.77435526,165.67,165.66,1e-08]
[1752476516954,35.52887668,165.67,165.66,1e-08]
[1752476520792,4.88887668,165.67,165.66,5.24547859]
[1752476521098,35.52887668,165.67,165.66,5.24547859]
[1752476521299,4.88887668,165.67,165.66,1e-08]
[1752476521478,4.88887668,165.67,165.66,5.24547859]
[1752476521990,4.88887668,165.67,165.66,1e-08]
[1752476523065,10.13435526,165.67,165.66,1e-08]
[1752476523779,4.88887668,165.67,165.66,1e-08]
[1752476524294,35.52887668,165.67,165.66,1e-08]
[1752476524799,35.52887668,165.67,165.66,5.24547859]
[1752476525604,4.88887668,165.67,165.66,5.24547859]
[1752476527090,4.88887668,165.67,165.66,1e-08]
[1752476527292,4.88887668,165.67,165.66,5.24547859]
[1752476527892,0.06,165.67,165.66,5.24547859]
[1752476530094,0.06,165.67,165.66,1e-08]
[1752476530401,0.06,165.67,165.66,5.24547859]
[1752476531197,0.06,165.67,165.66,1e-08]
[1752476531375,0.06,165.67,165.66,5.24547859]
[1752476531572,0.06,165.67,165.66,1e-08]
[1752476531894,0.06,165.67,165.66,5.24547859]
[1752476537503,0.06,165.67,165.66,1e-08]
[1752476537704,0.06,165.67,165.66,5.24547859]
[1752476547501,0.06,165.67,165.66,1e-08]
[1752476557743,0.06,165.67,165.66,5.24547859]
[1752476563036,0.06,165.67,165.66,1e-08]
[1752476564631,0.06,165.67,165.66,5.24547859]
[1752476566164,0.06,165.67,165.66,1e-08]
[1752476566463,0.06,165.67,165.66,5.24547859]
[1752476568235,0.06,165.67,165.66,1e-08]
[1752476572568,10.13435526,165.67,165.66,1e-08]
[1752476576535,4.88887668,165.67,165.66,1e-08]
[1752476577245,10.13435526,165.67,165.66,1e-08]
[1752476578258,4.88887668,165.67,165.66,1e-08]
[1752476578574,0.06,165.67,165.66,5.24547859]
[1752476578933,0.06,165.67,165.66,16.68195717]
[1752476579459,4.8279389,165.71,165.66,16.68195717]
[1752476579460,4.8279389,165.71,165.66,18.27575717]
[1752476579630,4.8279389,165.71,165.7,5.24547858]
[1752476580031,4.88748559,165.72,165.7,5.24547858]
[1752476580229,4.88748559,165.72,165.71,5.24547858]
[1752476581456,0.06,165.72,165.71,5.24547858]
[1752476581765,0.06,165.72,165.66,7.78480001]
[1752476581972,30.68,165.72,165.69,5.24547858]
[1752476582170,30.68,165.72,165.68,5.24547858]
[1752476582354,4.82771106,165.71,165.68,5.24547858]
[1752476583452,16.89698871,165.71,165.67,5.24547858]
[1752476583841,16.89698871,165.71,165.68,5.24547858]
[1752476584244,16.89698871,165.71,165.69,5.24547858]
[1752476584747,16.89698871,165.71,165.7,5.24547858]
[1752476585441,16.89698871,165.71,165.69,5.24547858]
[1752476585676,35.44771106,165.71,165.7,5.24547858]
[1752476585854,4.82771106,165.71,165.7,5.24547858]
[1752476586161,4.82771106,165.71,165.69,5.24547858]
[1752476586771,4.82771106,165.71,165.7,5.24547858]
[1752476587143,4.82771106,165.71,165.66,7.78480001]
[1752476587351,4.82771106,165.71,165.7,5.24547858]
[1752476587646,4.88741974,165.72,165.7,5.24547858]
[1752476593654,16.9559691,165.72,165.66,7.78480001]
[1752476593970,5.24547858,165.69,165.66,1e-08]
[1752476594277,30.62,165.68,165.66,1e-08]
[1752476595541,16.9559691,165.72,165.67,5.24547858]
[1752476595746,30.62,165.71,165.67,5.24547858]
[1752476595944,30.62,165.71,165.68,5.24547858]
[1752476597048,30.62,165.71,165.69,5.24547858]
[1752476597873,4.82800241,165.7,165.68,5.24547858]
[1752476599567,16.89800844,165.7,165.67,5.24547858]
[1752476599870,22.14348702,165.7,165.66,5.24547859]
[1752476600067,16.89800844,165.7,165.66,5.24547859]
[1752476601050,16.89800844,165.7,165.67,0.03]
[1752476601471,16.89800844,165.7,165.66,5.24547859]
[1752476602068,16.89800844,165.7,165.67,5.24547858]
[1752476604980,16.89800844,165.7,165.66,5.24547859]
[1752476606263,16.89800844,165.7,165.67,5.24547858]
[1752476608773,16.89800844,165.7,165.66,1e-08]
[1752476608979,16.89800844,165.7,165.67,5.24547858]
[1752476610698,16.89800844,165.7,165.66,1e-08]
[1752476610981,16.89800844,165.7,165.67,5.24547858]
[1752476611879,16.89800844,165.7,165.66,5.24547859]
[1752476612183,22.14348702,165.7,165.66,1e-08]
[1752476612565,5.24547858,165.67,165.66,1e-08]
[1752476612766,35.86547858,165.67,165.66,1e-08]
[1752476613374,40.69435526,165.67,165.66,1e-08]
[1752476614584,4.82887668,165.67,165.66,5.24547859]
[1752476617482,3.82887668,165.67,165.66,5.24547859]
[1752476619197,5.01543283,165.68,165.66,5.24547859]
[1752476619500,5.01543283,165.68,165.67,5.24547858]
[1752476619694,5.01543283,165.68,165.66,1e-08]
[1752476620071,5.01543283,165.68,165.67,5.24547858]
[1752476621489,35.63543283,165.68,165.66,1e-08]
[1752476625988,35.63543283,165.68,165.66,5.24547859]
[1752476627517,35.63543283,165.68,165.66,1e-08]
[1752476629300,36.33543283,165.68,165.66,1e-08]
[1752476629606,36.33543283,165.68,165.66,5.89547859]
[1752476630118,35.63543283,165.68,165.67,5.89547858]
[1752476630421,0.18678282,165.68,165.67,5.89547858]
[1752476638425,0.18678282,165.68,165.67,12.79375716]
[1752476638600,0.18678282,165.68,165.67,102.39375716]
[1752476639303,0.06,165.71,165.67,108.42979722]
[1752476639484,0.06,165.71,165.7,5.24547858]
[1752476640013,0.2,165.74,165.7,95.49547858]
[1752476640313,0.2,165.74,165.73,5.24547858]
[1752476640690,0.2,165.74,165.73,5.89547858]
[1752476642788,0.2,165.74,165.73,7.49217858]
[1752476643608,0.9,165.74,165.73,6.84217858]
[1752476644317,0.2,165.74,165.73,12.73765716]
[1752476644513,0.06,165.75,165.73,12.73765716]
[1752476644721,0.06,165.75,165.74,10.49095716]
[1752476644920,0.06,165.75,165.74,11.14095716]
[1752476646327,0.76,165.75,165.74,10.49095716]
[1752476646617,0.06,165.75,165.74,11.14095716]
[1752476646823,0.06,165.75,165.74,5.24547858]
[1752476647112,0.76,165.75,165.74,5.24547858]
[1752476647320,0.06,165.75,165.74,11.14095716]
[1752476647813,0.06,165.75,165.73,91.1967]
[1752476648117,0.7,165.74,165.69,1.6529]
[1752476648302,0.7,165.74,165.73,5.24547858]
[1752476648303,5.52683721,165.74,165.73,5.24547858]
[1752476650200,5.52683721,165.74,165.72,5.24547858]
[1752476650405,0.7,165.73,165.68,11.40547858]
[1752476650742,0.06,165.75,165.68,11.40547858]
[1752476650743,4.88663927,165.75,165.72,5.24547858]
[1752476650915,4.88663927,165.75,165.74,5.24547858]
[1752476651209,4.88663927,165.75,165.74,5.89547858]
[1752476651415,4.88663927,165.75,165.74,5.24547858]
[1752476651613,4.88663927,165.75,165.74,5.89547858]
[1752476651794,0.06,165.75,165.74,5.89547858]
[1752476652217,0.06,165.75,165.74,11.14095716]
[1752476653095,0.06,165.77,165.75,6.0663]
[1752476653295,0.06,165.78,165.76,10.49095716]
[1752476653602,0.06,165.78,165.77,5.24547858]
[1752476653805,0.06,165.78,165.77,5.89547858]
[1752476657500,0.76,165.78,165.77,5.24547858]
[1752476657709,0.06,165.78,165.77,5.24547858]
[1752476658027,0.06,165.78,165.77,5.89547858]
[1752476659232,0.06,165.78,165.77,5.24547858]
[1752476659434,0.76,165.78,165.77,5.24547858]
[1752476659731,0.06,165.78,165.77,5.94547858]
[1752476661738,0.1,165.81,165.77,95.54547858]
[1752476661902,0.1,165.81,165.8,5.24547858]
[1752476662103,4.9248782,165.81,165.8,5.24547858]
[1752476662309,0.1,165.81,165.8,5.94547858]
[1752476662539,0.1,165.81,165.8,5.24547858]
[1752476662835,5.62479946,165.81,165.8,5.24547858]
[1752476664318,4.92479946,165.81,165.8,5.24547858]
[1752476664922,4.92479946,165.81,165.8,5.94547858]
[1752476667045,0.1,165.81,165.8,5.94547858]
[1752476669223,0.1,165.81,165.8,5.24547858]
[1752476669634,5.62479946,165.81,165.8,5.24547858]
[1752476670252,5.62479946,165.81,165.79,5.24547858]
[1752476670543,0.7,165.8,165.79,5.24547858]
[1752476671347,5.52509047,165.8,165.79,5.24547858]
[1752476672529,5.62489204,165.81,165.79,5.24547858]
[1752476672737,5.62489204,165.81,165.8,5.24547858]
[1752476673022,4.92489204,165.81,165.8,5.24547858]
[1752476673515,5.62489204,165.81,165.8,5.24547858]
[1752476674118,4.92489204,165.81,165.8,5.24547858]
[1752476674330,0.1,165.81,165.8,5.94547858]
[1752476675639,4.92479946,165.81,165.8,0.7]
[1752476675820,5.62479946,165.81,165.8,5.24547858]
[1752476676838,5.62479946,165.81,165.79,5.24547858]
[1752476677015,0.7,165.8,165.79,5.24547858]
[1752476677215,4.92479946,165.81,165.8,6075.716554]
[1752476677420,4.92479946,165.81,165.8,6080.96203258]
[1752476679925,5.62479946,165.81,165.8,6080.96203258]
[1752476680765,4.92479946,165.81,165.8,6081.66203258]
[1752476681122,4.92479946,165.81,165.8,6080.96203258]
[1752476682216,4.92479946,165.81,165.8,6081.66203258]
[1752476682633,0.1,165.81,165.8,6081.66203258]
[1752476690646,0.1,165.81,165.8,6080.96203258]
[1752476690849,0.1,165.81,165.8,6081.68203258]
[1752476694834,4.92479946,165.81,165.8,6080.96203258]
[1752476695148,4.92479946,165.81,165.8,6081.68203258]
[1752476695927,5.62479946,165.81,165.8,6075.716554]
[1752476696452,5.62479946,165.81,165.8,6080.96203258]
[1752476696956,5.62479946,165.81,165.8,6075.716554]
[1752476698452,4.92479946,165.81,165.8,6080.96203258]
[1752476698653,4.92479946,165.81,165.8,6081.68203258]
[1752476698852,4.92479946,165.81,165.8,6080.96203258]
[1752476700057,5.62479946,165.81,165.8,6080.96203258]
[1752476700239,5.62479946,165.81,165.8,6075.716554]
[1752476701559,5.62479946,165.81,165.8,6080.96203258]
[1752476701732,4.92479946,165.81,165.8,6080.96203258]
[1752476701936,5.62479946,165.81,165.8,6080.96203258]
[1752476702340,4.92479946,165.81,165.8,6080.96203258]
[1752476702847,5.62479946,165.81,165.8,6080.96203258]
[1752476703233,5.62479946,165.81,165.8,6075.716554]
[1752476704440,4.92479946,165.81,165.8,6080.96203258]
[1752476705240,5.62479946,165.81,165.8,6080.96203258]
[1752476706056,4.92479946,165.81,165.8,6080.96203258]
[1752476706852,4.92479946,165.81,165.8,6081.68203258]
[1752476706853,0.1,165.81,165.8,6081.68203258]
[1752476707158,4.92479946,165.81,165.8,6081.68203258]
[1752476709474,4.92479946,165.81,165.8,6080.96203258]
[1752476710143,4.92479946,165.81,165.8,6081.68203258]
[1752476711658,4.92479946,165.81,165.8,6081.71203258]
[1752476712859,4.92479946,165.81,165.8,6080.99203258]
[1752476713246,4.92479946,165.81,165.8,6075.746554]
[1752476713444,4.92479946,165.81,165.8,6080.99203258]
[1752476713654,4.92479946,165.81,165.8,6075.746554]
[1752476713841,4.92479946,165.81,165.8,6080.99203258]
[1752476714358,4.92479946,165.81,165.8,6081.71203258]
[1752476714869,0.1,165.81,165.8,6081.71203258]
[1752476715448,4.92479946,165.81,165.8,6081.71203258]
[1752476716574,0.1,165.81,165.8,6081.71203258]
[1752476719873,5.62479946,165.81,165.8,6075.746554]
[1752476722464,4.92479946,165.81,165.8,6075.746554]
[1752476725479,0.1,165.81,165.8,6081.67203258]
[1752476726384,0.1,165.81,165.8,6112.23203258]
[1752476727691,0.1,165.81,165.8,6118.26339566]
[1752476729069,0.1,165.81,165.8,6112.23203258]
[1752476730594,0.1,165.81,165.8,6118.26339566]
[1752476731059,0.1,165.81,165.8,6112.23203258]
[1752476731261,0.1,165.81,165.8,6076.426554]
[1752476731461,0.1,165.81,165.8,6081.67203258]
[1752476735880,0.1,165.81,165.8,6087.70339566]
[1752476736083,0.1,165.81,165.8,6081.67203258]
[1752476736295,0.1,165.81,165.8,6118.26339566]
[1752476736466,0.1,165.81,165.8,6119.92569566]
[1752476736667,0.1,165.81,165.8,6126.29589566]
[1752476736968,0.06,165.84,165.8,6126.29589566]
[1752476737167,0.06,165.84,165.83,5.24547858]
[1752476737663,0.06,165.84,165.83,5.92547858]
[1752476741094,0.06,165.85,165.83,5.92547858]
[1752476741095,0.1,165.95,165.86,33.6655]